[Event "Turniej 30-lecia Liceum im. Józefa Bema"]
[Site "Warsaw, Poland"]
[Date "????.??.??"]
[Round "4.2"]
[White "Adamski, Jan"]
[Black "Babik, Tomasz"]
[Result "1/2-1/2"]
[TimeControl "0:10:02"]
[WhiteElo "2127"]
[BlackElo "2187"]

1. Nf3 {[%clk 00:10:02]} {[%emt 00:00:01]} c5 {[%clk 00:10:02]} {[%emt
00:00:02]} 2. c4 {[%clk 00:10:03]} Nf6 {[%clk 00:09:56]} {[%emt 00:00:08]} 3.
d4 {[%clk 00:10:02]} {[%emt 00:00:02]} cxd4 {[%clk 00:09:56]} {[%emt 00:00:03]}
4. Nxd4 {[%clk 00:10:03]} Nc6 {[%clk 00:09:56]} {[%emt 00:00:04]} 5. g3 {[%clk
00:10:00]} {[%emt 00:00:05]} e5 {[%clk 00:09:50]} {[%emt 00:00:08]} 6. Nb5
{[%clk 00:09:35]} {[%emt 00:00:26]} Bb4+ {[%clk 00:05:26]} {[%emt 00:04:27]} 7.
Bd2 {[%clk 00:09:20]} {[%emt 00:00:16]} a6 {[%clk 00:03:06]} {[%emt 00:02:23]}
8. N5c3 {[%clk 00:08:27]} {[%emt 00:00:55]} d5 {[%clk 00:03:04]} {[%emt
00:00:04]} 9. cxd5 {[%clk 00:08:22]} {[%emt 00:00:07]} Nxd5 {[%clk 00:03:05]}
10. Bg2 {[%clk 00:08:13]} {[%emt 00:00:10]} Be6 {[%clk 00:02:59]} {[%emt
00:00:08]} 11. O-O {[%clk 00:07:47]} {[%emt 00:00:27]} O-O {[%clk 00:02:53]}
{[%emt 00:00:10]} 12. Nxd5 {[%clk 00:06:30]} {[%emt 00:01:19]} Bxd5 {[%clk
00:02:46]} {[%emt 00:00:09]} 13. Bg5 {[%clk 00:06:08]} {[%emt 00:00:23]} Qxg5
{[%clk 00:02:27]} {[%emt 00:00:21]} 14. Qxd5 {[%clk 00:06:06]} {[%emt
00:00:04]} Rfd8 {[%clk 00:02:25]} {[%emt 00:00:05]} 15. Qb3 {[%clk 00:05:42]}
{[%emt 00:00:25]} Qe7 {[%clk 00:02:16]} {[%emt 00:00:11]} 16. e3 {[%clk
00:05:42]} {[%emt 00:00:02]} Rac8 {[%clk 00:02:10]} {[%emt 00:00:08]} 17. a3
{[%clk 00:05:28]} {[%emt 00:00:17]} Ba5 {[%clk 00:01:41]} {[%emt 00:00:31]} 18.
Rd1 {[%clk 00:02:41]} {[%emt 00:02:48]} Rxd1+ 19. Qxd1 {[%clk 00:02:42]} Rd8
{[%clk 00:01:33]} {[%emt 00:00:07]} 20. Qb3 {[%clk 00:02:33]} {[%emt 00:00:10]}
Qe6 {[%clk 00:00:33]} {[%emt 00:01:02]} 21. Qxe6 {[%clk 00:02:13]} {[%emt
00:00:22]} fxe6 {[%clk 00:00:34]} {[%emt 00:00:01]} 22. Bf3 {[%clk 00:02:03]}
{[%emt 00:00:12]} e4 {[%clk 00:00:31]} {[%emt 00:00:06]} 23. Be2 {[%clk
00:01:51]} {[%emt 00:00:13]} Ne5 {[%clk 00:00:30]} {[%emt 00:00:03]} 24. b4
{[%clk 00:01:34]} {[%emt 00:00:19]} Bc7 {[%clk 00:00:24]} {[%emt 00:00:08]} 25.
Nc3 {[%clk 00:01:31]} {[%emt 00:00:05]} Nf3+ {[%clk 00:00:14]} {[%emt
00:00:13]} 26. Kf1 {[%clk 00:00:45]} {[%emt 00:00:48]} Be5 {[%clk 00:00:14]}
{[%emt 00:00:02]} 27. Rc1 {[%clk 00:00:45]} {[%emt 00:00:02]} Rc8 {[%clk
00:00:15]} {[%emt 00:00:01]} 28. Na2 {[%clk 00:00:45]} {[%emt 00:00:02]} Rxc1+
29. Nxc1 {[%clk 00:00:46]} Nxh2+ {[%clk 00:00:15]} {[%emt 00:00:02]} 30. Kg2
{[%clk 00:00:46]} {[%emt 00:00:01]} Nf3 {[%clk 00:00:14]} {[%emt 00:00:03]} 31.
Nb3 {[%clk 00:00:39]} {[%emt 00:00:09]} Bd6 {[%clk 00:00:08]} {[%emt 00:00:07]}
32. Bxf3 {[%clk 00:00:39]} {[%emt 00:00:02]} exf3+ {[%clk 00:00:10]} 33. Kxf3
Kf7 34. Ke4 {[%clk 00:00:37]} {[%emt 00:00:04]} Ke7 {[%clk 00:00:11]} {[%emt
00:00:03]} 35. f4 {[%clk 00:00:38]} {[%emt 00:00:02]} b6 {[%clk 00:00:09]}
{[%emt 00:00:04]} 36. Nd2 {[%clk 00:00:24]} {[%emt 00:00:16]} g6 {[%clk
00:00:09]} {[%emt 00:00:02]} 37. Nc4 {[%clk 00:00:22]} {[%emt 00:00:03]} Bc7
{[%clk 00:00:10]} {[%emt 00:00:01]} 38. a4 {[%clk 00:00:21]} {[%emt 00:00:03]}
b5 {[%clk 00:00:06]} {[%emt 00:00:06]} 39. axb5 {[%clk 00:00:21]} {[%emt
00:00:01]} axb5 {[%clk 00:00:08]} 40. Na3 {[%emt 00:00:01]} Bd6 41. Nxb5 {[%clk
00:00:19]} {[%emt 00:00:04]} Bxb4 {[%clk 00:00:11]} {[%emt 00:00:01]} 42. Nd4
{[%clk 00:00:15]} {[%emt 00:00:06]} Bc5 {[%clk 00:00:10]} {[%emt 00:00:02]} 43.
Nf3 {[%clk 00:00:14]} {[%emt 00:00:03]} h6 {[%clk 00:00:11]} {[%emt 00:00:01]}
44. Ne5 {[%clk 00:00:14]} {[%emt 00:00:02]} g5 {[%clk 00:00:10]} {[%emt
00:00:03]} 45. fxg5 {[%clk 00:00:12]} {[%emt 00:00:04]} hxg5 {[%clk 00:00:11]}
46. g4 {[%clk 00:00:12]} {[%emt 00:00:03]} Bd6 {[%clk 00:00:12]} 47. Nf3 {[%clk
00:00:11]} {[%emt 00:00:03]} Kf6 {[%clk 00:00:14]} 48. Kd4 {[%clk 00:00:11]}
{[%emt 00:00:02]} Bg3 {[%clk 00:00:14]} {[%emt 00:00:01]} 1/2-1/2

[Event "Turniej 30-lecia Liceum im. Józefa Bema"]
[Site "Warsaw, Poland"]
[Date "????.??.??"]
[Round "4.3"]
[White "Dworakowski, Lukasz"]
[Black "Maciaga, Marcin"]
[Result "0-1"]
[TimeControl "0:10:02"]
[WhiteElo "2185"]
[BlackElo "2159"]

1. e4 {[%clk 00:10:03]} c5 {[%clk 00:10:02]} {[%emt 00:00:02]} 2. Nf3 {[%clk
00:10:03]} {[%emt 00:00:01]} d6 {[%clk 00:10:01]} {[%emt 00:00:04]} 3. d4
{[%clk 00:10:04]} {[%emt 00:00:02]} cxd4 {[%clk 00:10:00]} {[%emt 00:00:03]} 4.
Nxd4 {[%clk 00:10:05]} Nf6 {[%clk 00:10:00]} {[%emt 00:00:03]} 5. Nc3 {[%clk
00:10:06]} Bd7 {[%clk 00:09:59]} {[%emt 00:00:02]} 6. Bg5 {[%clk 00:09:43]}
{[%emt 00:00:25]} e6 {[%clk 00:09:58]} {[%emt 00:00:03]} 7. Be2 {[%clk
00:09:25]} {[%emt 00:00:20]} Nc6 {[%clk 00:09:49]} {[%emt 00:00:12]} 8. O-O
{[%clk 00:09:18]} {[%emt 00:00:10]} a6 {[%clk 00:09:25]} {[%emt 00:00:26]} 9.
Kh1 {[%clk 00:08:16]} {[%emt 00:01:03]} h6 {[%clk 00:09:03]} {[%emt 00:00:24]}
10. Bh4 {[%clk 00:08:08]} {[%emt 00:00:10]} g5 {[%clk 00:08:12]} {[%emt
00:00:52]} 11. Bg3 {[%clk 00:08:08]} {[%emt 00:00:02]} h5 {[%clk 00:08:08]}
{[%emt 00:00:06]} 12. h3 {[%clk 00:05:42]} {[%emt 00:02:29]} Nxd4 {[%clk
00:07:37]} {[%emt 00:00:33]} 13. Qxd4 {[%clk 00:05:42]} {[%emt 00:00:02]} e5
{[%clk 00:07:36]} {[%emt 00:00:03]} 14. Qd3 {[%clk 00:05:10]} {[%emt 00:00:34]}
Be6 {[%clk 00:07:18]} {[%emt 00:00:19]} 15. Nd5 {[%clk 00:04:20]} {[%emt
00:00:53]} Bxd5 {[%clk 00:06:45]} {[%emt 00:00:35]} 16. exd5 {[%clk 00:04:21]}
Be7 {[%clk 00:06:02]} {[%emt 00:00:45]} 17. c4 {[%clk 00:04:17]} {[%emt
00:00:07]} Rc8 {[%clk 00:05:47]} {[%emt 00:00:17]} 18. Qf5 {[%clk 00:04:08]}
{[%emt 00:00:11]} Ng8 {[%clk 00:05:01]} {[%emt 00:00:48]} 19. Bd3 {[%clk
00:03:13]} {[%emt 00:00:58]} Nh6 {[%clk 00:04:27]} {[%emt 00:00:36]} 20. Qe4
{[%clk 00:01:40]} {[%emt 00:01:33]} Qd7 {[%clk 00:03:47]} {[%emt 00:00:43]} 21.
Rae1 {[%clk 00:01:29]} {[%emt 00:00:14]} f5 {[%clk 00:03:06]} {[%emt 00:00:42]}
22. Qe2 {[%clk 00:01:31]} Nf7 {[%clk 00:02:46]} {[%emt 00:00:23]} 23. Bb1
{[%clk 00:01:20]} {[%emt 00:00:13]} h4 {[%clk 00:02:26]} {[%emt 00:00:22]} 24.
Bh2 {[%clk 00:01:21]} {[%emt 00:00:01]} Bf6 {[%clk 00:02:10]} {[%emt 00:00:16]}
25. f4 {[%clk 00:01:18]} {[%emt 00:00:07]} e4 {[%clk 00:01:35]} {[%emt
00:00:37]} 26. Bxe4 {[%clk 00:01:09]} {[%emt 00:00:11]} fxe4 {[%clk 00:01:16]}
{[%emt 00:00:21]} 27. Qxe4+ {[%clk 00:01:08]} {[%emt 00:00:04]} Kd8 {[%clk
00:01:05]} {[%emt 00:00:12]} 28. fxg5 {[%clk 00:00:56]} {[%emt 00:00:14]} Nxg5
{[%clk 00:00:45]} {[%emt 00:00:21]} 29. Qg6 {[%clk 00:00:42]} {[%emt 00:00:16]}
Be7 {[%clk 00:00:42]} {[%emt 00:00:06]} 30. Rxe7 {[%clk 00:00:21]} {[%emt
00:00:23]} Qxe7 {[%clk 00:00:40]} {[%emt 00:00:03]} 31. Bxd6 {[%clk 00:00:22]}
{[%emt 00:00:01]} Qe2 {[%clk 00:00:19]} {[%emt 00:00:23]} 32. Qxg5+ {[%clk
00:00:22]} {[%emt 00:00:03]} Kd7 {[%clk 00:00:19]} {[%emt 00:00:02]} 33. Rf7+
{[%clk 00:00:10]} {[%emt 00:00:14]} Kxd6 {[%clk 00:00:19]} {[%emt 00:00:03]} 34.
Qf6+ {[%clk 00:00:08]} {[%emt 00:00:03]} Kc5 {[%clk 00:00:18]} {[%emt
00:00:03]} 35. b4+ {[%clk 00:00:09]} {[%emt 00:00:02]} Kxc4 {[%clk 00:00:15]}
{[%emt 00:00:05]} 36. Qf4+ {[%clk 00:00:06]} {[%emt 00:00:05]} Kd3 {[%clk
00:00:13]} {[%emt 00:00:04]} 37. Qf5+ {[%clk 00:00:07]} {[%emt 00:00:02]} Kd2
{[%clk 00:00:13]} {[%emt 00:00:02]} 38. Qg5+ {[%clk 00:00:08]} Kd1 {[%clk
00:00:11]} {[%emt 00:00:04]} 39. d6 {[%clk 00:00:07]} {[%emt 00:00:03]} Rc1
{[%clk 00:00:09]} {[%emt 00:00:04]} 40. d7 {[%clk 00:00:05]} {[%emt 00:00:05]}
Kc2+ {[%clk 00:00:09]} {[%emt 00:00:02]} 41. Kh2 {[%clk 00:00:06]} Rd1 {[%clk
00:00:05]} {[%emt 00:00:06]} 42. Qg6+ {[%clk 00:00:04]} {[%emt 00:00:03]} Qd3
{[%clk 00:00:06]} {[%emt 00:00:01]} 43. Rf2+ {[%clk 00:00:04]} {[%emt
00:00:02]} Kb1 {[%clk 00:00:06]} {[%emt 00:00:02]} 0-1

[Event "Turniej 30-lecia Liceum im. Józefa Bema"]
[Site "Warsaw, Poland"]
[Date "????.??.??"]
[Round "4.4"]
[White "Bielinski, Leszek"]
[Black "Nurkiewicz, Maciej"]
[Result "0-1"]
[TimeControl "0:10:02"]
[WhiteElo "1854"]
[BlackElo "2301"]

1. e4 {[%emt 00:00:26]} c5 {[%emt 00:00:04]} 2. g3 {[%emt 00:00:02]} g6 {[%emt
00:00:04]} 3. Bg2 {[%emt 00:00:01]} Bg7 4. Ne2 {[%emt 00:00:01]} Nc6 {[%emt
00:00:02]} 5. O-O {[%emt 00:00:02]} d6 {[%emt 00:00:05]} 6. c3 {[%emt
00:00:02]} e5 {[%emt 00:00:34]} 7. d3 {[%emt 00:00:04]} Nge7 {[%emt 00:00:07]}
8. Be3 {[%emt 00:00:04]} O-O {[%emt 00:00:03]} 9. Nd2 {[%emt 00:00:03]} b6
{[%emt 00:00:11]} 10. Nb3 {[%emt 00:00:36]} d5 {[%emt 00:00:16]} 11. Qd2 {[%clk
00:09:00]} {[%emt 00:00:29]} d4 {[%clk 00:07:51]} {[%emt 00:01:07]} 12. cxd4
{[%clk 00:08:53]} {[%emt 00:00:09]} cxd4 {[%clk 00:07:47]} {[%emt 00:00:05]} 13.
Bh6 {[%clk 00:08:46]} {[%emt 00:00:09]} a5 {[%clk 00:07:42]} {[%emt 00:00:09]}
14. Bxg7 {[%clk 00:08:22]} {[%emt 00:00:26]} Kxg7 {[%clk 00:07:42]} {[%emt
00:00:02]} 15. f4 {[%clk 00:07:21]} {[%emt 00:01:02]} f6 {[%clk 00:07:41]}
{[%emt 00:00:02]} 16. fxe5 {[%clk 00:07:07]} {[%emt 00:00:17]} fxe5 {[%clk
00:07:41]} {[%emt 00:00:02]} 17. Rxf8 {[%clk 00:07:08]} {[%emt 00:00:01]} Qxf8
{[%clk 00:07:37]} {[%emt 00:00:06]} 18. Rf1 {[%clk 00:07:06]} {[%emt 00:00:04]}
Qd8 {[%clk 00:06:42]} {[%emt 00:00:57]} 19. Qc2 {[%clk 00:06:06]} {[%emt
00:01:01]} Be6 {[%clk 00:06:31]} {[%emt 00:00:13]} 20. Nec1 {[%clk 00:05:39]}
{[%emt 00:00:28]} Rc8 {[%clk 00:05:41]} {[%emt 00:00:52]} 21. Qb1 {[%clk
00:05:34]} {[%emt 00:00:07]} Nb4 {[%clk 00:05:32]} {[%emt 00:00:11]} 22. Rf2
{[%clk 00:05:01]} {[%emt 00:00:35]} Qc7 {[%clk 00:05:32]} {[%emt 00:00:03]} 23.
Bf3 {[%clk 00:04:39]} {[%emt 00:00:24]} a4 {[%clk 00:05:27]} {[%emt 00:00:07]}
24. a3 {[%clk 00:04:34]} {[%emt 00:00:08]} axb3 {[%clk 00:05:23]} {[%emt
00:00:05]} 25. Rf1 {[%emt 00:00:10]} 0-1

[Event "Turniej 30-lecia Liceum im. Józefa Bema"]
[Site "Warsaw, Poland"]
[Date "????.??.??"]
[Round "4.5"]
[White "Siekierski, Pawel"]
[Black "Praczukowski, Stanislaw"]
[Result "0-1"]
[TimeControl "0:10:02"]
[WhiteElo "1889"]
[BlackElo "2113"]

1. d4 {[%clk 00:10:03]} Nf6 {[%clk 00:10:02]} {[%emt 00:00:02]} 2. c4 {[%clk
00:10:04]} e6 {[%clk 00:09:56]} {[%emt 00:00:09]} 3. Nf3 {[%clk 00:10:05]}
{[%emt 00:00:01]} b6 {[%clk 00:09:57]} 4. g3 {[%clk 00:10:06]} {[%emt
00:00:01]} Ba6 {[%clk 00:09:58]} {[%emt 00:00:01]} 5. b3 {[%clk 00:10:06]}
{[%emt 00:00:01]} Bb4+ {[%clk 00:09:59]} {[%emt 00:00:01]} 6. Bd2 {[%clk
00:10:08]} Be7 {[%clk 00:10:00]} {[%emt 00:00:01]} 7. Bg2 {[%clk 00:10:09]} c6
{[%clk 00:10:02]} 8. O-O {[%clk 00:10:07]} {[%emt 00:00:04]} d5 {[%clk
00:10:03]} 9. Ne5 {[%clk 00:10:08]} {[%emt 00:00:03]} Nfd7 {[%clk 00:10:03]}
{[%emt 00:00:01]} 10. Nxd7 {[%clk 00:10:06]} {[%emt 00:00:03]} Nxd7 {[%clk
00:10:01]} {[%emt 00:00:05]} 11. Re1 {[%clk 00:09:57]} {[%emt 00:00:10]} Rc8
{[%clk 00:09:38]} {[%emt 00:00:25]} 12. cxd5 {[%clk 00:08:41]} {[%emt
00:01:19]} cxd5 {[%clk 00:09:34]} {[%emt 00:00:05]} 13. e4 {[%clk 00:08:37]}
{[%emt 00:00:07]} dxe4 {[%clk 00:09:26]} {[%emt 00:00:10]} 14. Bxe4 {[%clk
00:08:37]} {[%emt 00:00:02]} Nf6 {[%clk 00:09:21]} {[%emt 00:00:07]} 15. Bf4
{[%clk 00:07:48]} {[%emt 00:00:51]} Nxe4 {[%clk 00:09:16]} {[%emt 00:00:07]} 16.
Rxe4 {[%clk 00:07:48]} Bb7 {[%clk 00:09:16]} {[%emt 00:00:02]} 17. Re1 {[%clk
00:07:31]} {[%emt 00:00:19]} Qd5 {[%clk 00:09:07]} {[%emt 00:00:11]} 18. f3
{[%clk 00:07:21]} {[%emt 00:00:12]} O-O {[%clk 00:07:59]} {[%emt 00:01:10]} 19.
Re3 {[%clk 00:05:52]} {[%emt 00:01:31]} Bf6 {[%clk 00:07:46]} {[%emt 00:00:15]}
20. Be5 {[%clk 00:05:19]} {[%emt 00:00:35]} Bxe5 {[%clk 00:07:33]} {[%emt
00:00:15]} 21. Rxe5 {[%clk 00:05:20]} {[%emt 00:00:01]} Qxf3 {[%clk 00:07:27]}
{[%emt 00:00:09]} 22. Qxf3 {[%clk 00:05:19]} {[%emt 00:00:03]} Bxf3 {[%clk
00:07:27]} 23. Nd2 {[%clk 00:05:20]} Bd5 {[%clk 00:07:23]} {[%emt 00:00:08]} 24.
Kf2 {[%clk 00:05:02]} {[%emt 00:00:21]} Rc2 {[%clk 00:07:16]} {[%emt 00:00:09]}
25. Re2 {[%clk 00:04:47]} {[%emt 00:00:17]} Rfc8 {[%clk 00:07:11]} {[%emt
00:00:07]} 26. Rae1 {[%clk 00:04:41]} {[%emt 00:00:07]} Rxa2 {[%clk 00:07:09]}
{[%emt 00:00:05]} 27. Rb1 {[%clk 00:03:47]} {[%emt 00:00:56]} Rcc2 {[%clk
00:07:03]} {[%emt 00:00:07]} 28. Ke3 {[%clk 00:03:48]} f5 {[%clk 00:06:48]}
{[%emt 00:00:17]} 29. Rf2 {[%clk 00:03:38]} {[%emt 00:00:12]} g5 {[%clk
00:06:15]} {[%emt 00:00:36]} 30. Kd3 {[%clk 00:03:26]} {[%emt 00:00:14]} Be4+
{[%clk 00:06:00]} {[%emt 00:00:17]} 0-1

[Event "Turniej 30-lecia Liceum im. Józefa Bema"]
[Site "Warsaw, Poland"]
[Date "????.??.??"]
[Round "4.6"]
[White "Kedzierski, Slawomir"]
[Black "Basiaga, Sebastian"]
[Result "1-0"]
[TimeControl "0:10:02"]
[WhiteElo "2061"]
[BlackElo "1771"]

1. d4 {[%emt 00:24:42]} d5 {[%emt 00:00:02]} 2. Nf3 Nf6 {[%emt 00:00:02]} 3. c4
c6 {[%emt 00:00:01]} 4. Nc3 e6 {[%emt 00:00:01]} 5. Bg5 {[%emt 00:00:04]} Nbd7
{[%emt 00:00:06]} 6. e3 {[%emt 00:00:01]} Be7 {[%emt 00:00:02]} 7. Rc1 {[%emt
00:00:02]} O-O {[%emt 00:00:40]} 8. Qc2 {[%emt 00:00:04]} a6 {[%emt 00:01:20]}
9. Bd3 {[%emt 00:00:14]} h6 {[%emt 00:00:28]} 10. Bh4 {[%emt 00:00:02]} dxc4
{[%emt 00:00:34]} 11. Bxc4 {[%emt 00:00:02]} b5 {[%emt 00:00:02]} 12. Be2
{[%emt 00:00:07]} c5 {[%emt 00:00:21]} 13. O-O {[%emt 00:00:04]} cxd4 {[%emt
00:00:06]} 14. Nxd4 {[%emt 00:00:05]} Bb7 {[%emt 00:00:01]} 15. Rfd1 {[%emt
00:00:03]} Rc8 {[%emt 00:01:04]} 16. Qb1 {[%emt 00:00:16]} Qb6 {[%emt
00:00:16]} 17. Bf3 {[%emt 00:00:28]} Ne5 {[%emt 00:00:22]} 18. Bxb7 {[%emt
00:00:11]} Qxb7 {[%emt 00:00:02]} 19. Bxf6 {[%emt 00:00:19]} Bxf6 {[%emt
00:00:05]} 20. Ne4 {[%emt 00:00:06]} Be7 {[%emt 00:00:20]} 21. Nd2 {[%emt
00:00:21]} Rxc1 {[%emt 00:00:13]} 22. Rxc1 {[%emt 00:00:02]} Rc8 23. Rxc8+
{[%emt 00:00:10]} Qxc8 {[%emt 00:00:04]} 24. h3 {[%emt 00:00:32]} Qc7 {[%emt
00:01:53]} 25. f4 {[%emt 00:01:05]} Nd7 {[%emt 00:00:21]} 26. Qc2 {[%emt
00:00:31]} Qb7 {[%emt 00:00:32]} 27. Ne4 {[%emt 00:00:43]} Nf6 {[%emt
00:00:03]} 28. Nc6 {[%emt 00:00:32]} Nxe4 {[%emt 00:00:40]} 29. Qxe4 {[%emt
00:00:03]} Bf6 {[%emt 00:00:05]} 30. b3 {[%emt 00:00:10]} Qd7 {[%emt 00:00:08]}
31. Nb4 {[%emt 00:01:15]} Qd2 {[%emt 00:00:42]} 32. Kh2 {[%emt 00:00:37]} a5
{[%emt 00:00:08]} 33. Nc2 {[%emt 00:00:45]} a4 {[%emt 00:00:18]} 34. bxa4
{[%emt 00:00:02]} bxa4 {[%emt 00:00:01]} 35. Qxa4 {[%emt 00:00:07]} h5 {[%emt
00:00:07]} 36. Qa8+ {[%emt 00:00:06]} Kh7 {[%emt 00:00:01]} 37. Qe4+ g6 {[%emt
00:00:03]} 38. a4 {[%emt 00:00:12]} h4 {[%emt 00:00:02]} 39. Nd4 {[%emt
00:00:08]} Qf2 {[%emt 00:00:06]} 40. Nf3 {[%emt 00:00:06]} Qa2 {[%emt
00:00:05]} 41. Ng5+ {[%emt 00:00:04]} Kg7 {[%emt 00:00:03]} 42. Nf3 {[%emt
00:00:01]} Ba1 {[%emt 00:00:04]} 43. Nxh4 {[%emt 00:00:08]} Bf6 {[%emt
00:00:03]} 44. Nf3 1-0

[Event "Turniej 30-lecia Liceum im. Józefa Bema"]
[Site "Warsaw, Poland"]
[Date "????.??.??"]
[Round "4.7"]
[White "Szymczak, Rafal"]
[Black "Pichurko, Jakub"]
[Result "1-0"]
[TimeControl "0:10:02"]
[WhiteElo "2021"]
[BlackElo "1677"]

1. f4 {[%clk 00:10:02]} {[%emt 00:00:01]} Nf6 {[%clk 00:09:59]} {[%emt
00:00:05]} 2. Nf3 {[%clk 00:10:03]} {[%emt 00:00:01]} g6 {[%clk 00:09:58]}
{[%emt 00:00:02]} 3. b3 {[%clk 00:10:04]} {[%emt 00:00:02]} Bg7 {[%clk
00:09:59]} {[%emt 00:00:01]} 4. Bb2 {[%clk 00:10:06]} O-O {[%clk 00:09:55]}
{[%emt 00:00:07]} 5. e3 {[%clk 00:10:06]} {[%emt 00:00:02]} c5 {[%clk
00:09:47]} {[%emt 00:00:09]} 6. c4 {[%clk 00:10:01]} {[%emt 00:00:07]} Nc6
{[%clk 00:09:46]} {[%emt 00:00:04]} 7. Be2 {[%clk 00:10:01]} {[%emt 00:00:02]}
d6 {[%clk 00:09:26]} {[%emt 00:00:22]} 8. O-O {[%clk 00:10:00]} {[%emt
00:00:03]} a6 {[%clk 00:09:02]} {[%emt 00:00:26]} 9. Nc3 {[%clk 00:09:25]}
{[%emt 00:00:37]} Rb8 {[%clk 00:08:52]} {[%emt 00:00:13]} 10. d3 {[%clk
00:08:59]} {[%emt 00:00:28]} b5 {[%clk 00:08:16]} {[%emt 00:00:37]} 11. Qd2
{[%clk 00:08:35]} {[%emt 00:00:26]} e6 {[%clk 00:07:07]} {[%emt 00:01:12]} 12.
Rad1 {[%clk 00:08:33]} {[%emt 00:00:03]} d5 {[%clk 00:06:48]} {[%emt 00:00:21]}
13. cxd5 {[%clk 00:08:14]} {[%emt 00:00:21]} exd5 {[%clk 00:06:46]} {[%emt
00:00:04]} 14. Rc1 {[%clk 00:07:01]} {[%emt 00:01:16]} d4 {[%clk 00:06:28]}
{[%emt 00:00:20]} 15. Nd1 {[%clk 00:06:44]} {[%emt 00:00:18]} dxe3 {[%clk
00:05:55]} {[%emt 00:00:35]} 16. Nxe3 {[%clk 00:06:38]} {[%emt 00:00:08]} Qb6
{[%clk 00:05:42]} {[%emt 00:00:15]} 17. Kh1 {[%clk 00:06:29]} {[%emt 00:00:10]}
Rd8 {[%clk 00:05:23]} {[%emt 00:00:21]} 18. Qc3 {[%clk 00:05:57]} {[%emt
00:00:35]} Nd4 {[%clk 00:05:00]} {[%emt 00:00:25]} 19. Rfe1 {[%clk 00:05:01]}
{[%emt 00:00:59]} Bf8 {[%clk 00:03:48]} {[%emt 00:01:14]} 20. Ne5 {[%clk
00:04:23]} {[%emt 00:00:40]} Bb7 {[%clk 00:03:35]} {[%emt 00:00:15]} 21. Qd2
{[%clk 00:04:01]} {[%emt 00:00:24]} Nd5 {[%clk 00:03:26]} {[%emt 00:00:11]} 22.
Nxd5 {[%clk 00:03:53]} {[%emt 00:00:09]} Bxd5 {[%clk 00:03:26]} {[%emt
00:00:02]} 23. Bxd4 {[%clk 00:03:50]} {[%emt 00:00:06]} cxd4 {[%clk 00:03:24]}
{[%emt 00:00:04]} 24. Bf3 {[%clk 00:03:46]} {[%emt 00:00:06]} a5 {[%clk
00:03:16]} {[%emt 00:00:10]} 25. Nc6 {[%clk 00:02:38]} {[%emt 00:01:10]} Bxc6
{[%clk 00:02:57]} {[%emt 00:00:21]} 26. Rxc6 {[%clk 00:02:39]} Qa7 {[%clk
00:02:54]} {[%emt 00:00:04]} 27. Rec1 {[%clk 00:02:39]} {[%emt 00:00:03]} Bb4
{[%clk 00:02:42]} {[%emt 00:00:15]} 28. Qf2 {[%clk 00:02:35]} {[%emt 00:00:05]}
Qd7 {[%clk 00:02:25]} {[%emt 00:00:18]} 29. Rc7 {[%clk 00:02:31]} {[%emt
00:00:07]} Qe6 {[%clk 00:02:26]} {[%emt 00:00:01]} 30. R1c6 {[%clk 00:02:20]}
{[%emt 00:00:13]} Qe3 {[%clk 00:02:23]} {[%emt 00:00:05]} 31. Qxe3 {[%clk
00:01:59]} {[%emt 00:00:24]} dxe3 {[%emt 00:00:01]} 32. Be2 Bd2 {[%clk
00:02:15]} {[%emt 00:00:10]} 33. g4 {[%clk 00:01:54]} {[%emt 00:00:09]} Rd4
{[%clk 00:02:12]} {[%emt 00:00:05]} 34. f5 {[%clk 00:01:51]} {[%emt 00:00:06]}
Rf4 {[%clk 00:02:09]} {[%emt 00:00:04]} 35. f6 {[%clk 00:01:34]} {[%emt
00:00:20]} Rf2 {[%clk 00:02:06]} {[%emt 00:00:05]} 36. Rc8+ {[%clk 00:01:34]}
{[%emt 00:00:02]} 1-0